fUSD/lending_fUSD_20240820
["ID","MTS","AMOUNT","RATE_DAILY","PERIOD"]
[335343195,1724140243590,-165.529153,0.00010899,2]
[335343197,1724140243599,-500.0,0.00010899,2]
[335343199,1724140243609,-500.0,0.00010899,2]
[335343201,1724140243618,-500.0,0.00010899,2]
[335343203,1724140243628,-500.0,0.00010899,2]
[335343205,1724140243636,-339.27053746,0.00010899,2]
[335343207,1724140243645,-524.0,0.000109,2]
[335343208,1724140243654,-535431.02424103,0.000109,2]
[335343211,1724140243670,-1122.81021144,0.000109,2]
[335343213,1724140243681,-2320.0,0.000109,2]
[335343215,1724140243691,-1326.30959715,0.000109,2]
[335343217,1724140243702,-12611.58875453,0.000109,2]
[335343219,1724140243713,-143008.61627105,0.000109,2]
[335343221,1724140243723,-343.69288208,0.000109,2]
[335343223,1724140243735,-6443.66564745,0.000109,2]
[335343226,1724140243750,-482.00237009,0.000109,2]
[335343228,1724140243760,-397.66172814,0.000109,2]
[335343230,1724140243771,-1806.49803386,0.000109,2]
[335343413,1724140245609,-500.0,0.00010899,2]
[335343415,1724140245618,-51.23412931,0.00010899,2]
[335343417,1724140245629,-448.76587069,0.00010899,2]
[335343418,1724140245638,-21.85412929,0.00010899,2]
[335343420,1724140245649,-389.63124367,0.00010899,2]
[335343422,1724140245659,-88.51462704,0.00010899,2]
[335343424,1724140245668,-202.57659301,0.00010899,2]
[335343426,1724140245679,-297.42340699,0.00010899,2]
[335343428,1724140245688,-500.0,0.00010899,2]
[335343430,1724140245697,-202.76187023,0.00010899,2]
[335343432,1724140245708,-297.23812977,0.00010899,2]
[335343434,1724140245718,-500.0,0.00010899,2]
[335343436,1724140245727,-404.62696747,0.00010899,2]
[335343438,1724140245736,-2156.91190095,0.000109,2]
[335343440,1724140245747,-264.208,0.000109,2]
[335343442,1724140245759,-4776.59933758,0.000109,2]
[335343444,1724140245769,-300.0,0.000109,2]
[335343494,1724140246278,-3871.59662795,0.000109,2]
[335343496,1724140246289,-344.831931,0.000109,2]
[335343498,1724140246305,-5891.39520654,0.000109,2]
[335343500,1724140246316,-419.49964303,0.000109,2]
[335343609,1724140423261,177.12,9.726e-05,2]
[335343610,1724140440187,250.0,9.724e-05,2]
[335343611,1724140495443,174.17,9.693e-05,2]
[335343612,1724140496628,200.0,9.706e-05,2]
[335343613,1724140521357,228.27,9.725e-05,2]
[335343614,1724140612158,360.41,8.219e-05,2]
[335343615,1724140675439,23900.0,9.667e-05,2]
[335343616,1724140676279,246.5,9.667e-05,2]
[335343617,1724140684742,275.71,9.754e-05,2]
[335343618,1724140708808,500.0,8.22e-05,2]
[335343619,1724140732304,12499.23,9.65e-05,2]
[335343620,1724140747830,500.0,8.22e-05,2]
[335343621,1724140749439,500.0,9.59e-05,2]
[335343622,1724140766952,372.76,9.646e-05,2]
[335343633,1724140861702,177.12,9.618e-05,2]
[335343634,1724140911851,183.24126303,9.899e-05,2]
[335343635,1724140988563,633.53,9.604e-05,2]
[335343636,1724140992211,172.62,9.604e-05,2]
[335343637,1724141134384,203.03298078,9.899e-05,2]
[335343638,1724141147070,365.43,8.219e-05,2]
[335343639,1724141158792,23900.0,9.611e-05,2]
[335343640,1724141164438,203.03298078,9.899e-05,2]
[335343641,1724141194109,187.97,9.618e-05,2]
[335343642,1724141227723,150.0,9.789e-05,2]
[335343643,1724141250469,701.79,9.562e-05,2]
[335343644,1724141282736,726.22,9.607e-05,2]
[335343650,1724141338753,221.87,9.563e-05,2]
[335343653,1724141367287,297.51588055,9.899e-05,2]
[335343660,1724141412836,410.1,9.637e-05,2]
[335343661,1724141428937,155.0,9.899e-05,2]
[335343663,1724141431694,-440.37274966,9.91e-05,2]
[335343665,1724141431704,-155.0,9.91e-05,2]
[335343667,1724141431713,-203.03298078,9.929e-05,2]
[335343669,1724141431723,-203.03298078,9.929e-05,2]
[335343670,1724141431733,-300.0,9.942e-05,2]
[335343671,1724141431743,-1398.56128878,9.943e-05,2]
[335343672,1724141431755,-465.31403126,9.943e-05,2]
[335343673,1724141431766,-286.85807471,9.943e-05,2]
[335343674,1724141431948,-11676.20481038,9.943e-05,2]
[335343675,1724141431960,-8187.43401926,9.943e-05,2]
[335343677,1724141431971,-6016.27289891,9.943e-05,2]
[335343679,1724141431980,-137.84568296,9.943e-05,2]
[335343681,1724141431991,-4507.06363913,9.943e-05,2]
[335343682,1724141432005,-5934.05219726,9.943e-05,2]
[335343683,1724141432019,-2387.97522321,9.943e-05,2]
[335343685,1724141432029,-1500.0,9.943e-05,2]
[335343687,1724141432038,-150.0,9.987e-05,2]
[335343689,1724141432047,-299.14911154,9.988e-05,2]
[335343691,1724141432057,-191.52383957,9.999e-05,2]
[335343693,1724141432066,-358.14086593,9.999e-05,2]
[335343694,1724141432075,-242.53687016,9.999e-05,2]
[335343696,1724141432084,-255.71947903,9.999e-05,2]
[335343698,1724141432094,-1675.81760179,0.0001,2]
[335343700,1724141432103,-203.44814982,0.00010009,2]
[335343702,1724141432112,-285.70964453,0.00010009,2]
[335343703,1724141432121,-166.39780491,0.00010009,2]
[335343705,1724141432130,-611.64,0.00010009,2]
[335343707,1724141432139,-600.0,0.00010018,2]
[335343709,1724141432148,-164.4317177,0.00010026,2]
[335343711,1724141432158,-500.0,0.00010026,2]
[335343713,1724141432167,-236.78945143,0.00010026,2]
[335343715,1724141432178,-300.54392817,0.00010026,2]
[335343717,1724141432187,-517.65878543,0.00010026,2]
[335343719,1724141432196,-310.66541419,0.00010097,2]
[335343721,1724141432205,-328.86743048,0.00010097,2]
[335343723,1724141432214,-700.0,0.000101,3]
[335343725,1724141432223,-178.34,0.00010144,2]
[335343727,1724141432232,-500.0,0.00010168,2]
[335343728,1724141432241,-499.99,0.000102,2]
[335343730,1724141432251,-1500.0,0.000102,3]
[335343732,1724141432261,-500.0,0.00010224,2]
[335343734,1724141432270,-396.29,0.000103,2]
[335343736,1724141432279,-2200.0,0.000103,3]
[335343738,1724141432288,-500.0,0.00010349,2]
[335343740,1724141432298,-600.0,0.00010361,2]
[335343742,1724141432307,-3000.0,0.000104,3]
[335343744,1724141432316,-500.91358165,0.00010439,2]
[335343746,1724141432325,-365.43,0.00010457,2]
[335343748,1724141432334,-500.0,0.00010458,2]
[335343750,1724141432343,-500.0,0.00010499,2]
[335343751,1724141432353,-3800.0,0.000105,3]
[335343752,1724141432362,-529.01492508,0.00010505,2]
[335343753,1724141432372,-522.9745894,0.00010505,2]
[335343754,1724141432381,-600.0,0.00010528,2]
[335343755,1724141432391,-500.0,0.00010563,2]
[335343756,1724141432400,-700.0,0.000106,3]
[335343757,1724141432409,-500.0,0.00010608,2]
[335343758,1724141432419,-600.0,0.0001063,2]
[335343759,1724141432428,-1298.71692182,0.00010699,2]
[335343760,1724141432437,-155.2991851,0.00010699,2]
[335343761,1724141432447,-700.0,0.000107,3]
[335343762,1724141432456,-292.74243511,0.00010713,2]
[335343763,1724141432466,-500.0,0.00010727,2]
[335343764,1724141432475,-701.79,0.00010758,2]
[335343765,1724141432484,-221.87,0.00010759,2]
[335343766,1724141432493,-500.0,0.00010776,2]
[335343767,1724141432504,-3000.0,0.0001079,2]
[335343768,1724141432513,-183.34984035,0.00010799,2]
[335343769,1724141432523,-500.0,0.00010799,2]
[335343770,1724141432532,-3418.65990276,0.000108,2]
[335343771,1724141432542,-167.7305538,0.000108,2]
[335343772,1724141432551,-700.0,0.000108,3]
[335343773,1724141432560,-171.61026492,0.000108,2]
[335343774,1724141432570,-313.92316394,0.000108,2]
[335343775,1724141432579,-600.0,0.00010801,2]
[335343776,1724141432588,-600.0,0.00010804,2]
[335343777,1724141432597,-500.0,0.00010824,2]
[335343778,1724141432607,-3727.0,0.0001084,2]
[335343779,1724141432616,-399.74,0.0001084,2]
[335343780,1724141432625,-1033.983,0.0001084,2]
[335343781,1724141432635,-372.76,0.00010852,2]
[335343782,1724141432644,-742.1170854,0.00010852,2]
[335343783,1724141432654,-403.60316378,0.00010861,2]
[335343784,1724141432665,-547.20212831,0.00010862,2]
[335343785,1724141432673,-200.0,0.00010873,2]
[335343786,1724141432684,-2216.31651882,0.00010888,2]
[335343787,1724141432696,-674.3969528,0.0001089,2]
[335343788,1724141432705,-5522.4190715,0.00010893,2]
[335343789,1724141432715,-4734.8855522,0.00010893,2]
[335343790,1724141432727,-805.63031946,0.00010893,2]
[335343791,1724141432740,-1249.78872132,0.00010893,2]
[335343792,1724141432752,-378.12088602,0.00010893,2]
[335343793,1724141432765,-5452.55193141,0.00010893,2]
[335343794,1724141432782,-1028.79,0.00010893,2]
[335343795,1724141432793,-2962.25562924,0.00010893,2]
[335343796,1724141432804,-574.33388565,0.00010893,2]
[335343797,1724141432813,-1944.6861266,0.00010893,2]
[335343798,1724141432823,-811.95118385,0.00010897,2]
[335343799,1724141432832,-500.0,0.00010898,2]
[335343800,1724141432842,-245.52071309,0.00010898,2]
[335343801,1724141432851,-500.0,0.00010898,2]
[335343802,1724141432860,-985.73362732,0.00010899,2]
[335343803,1724141432870,-363.84868797,0.00010899,2]
[335343804,1724141432879,-110.57140842,0.00010899,2]
[335343805,1724141432891,-389.42859158,0.00010899,2]
[335343806,1724141432900,-165.82040842,0.00010899,2]
[335343807,1724141432912,-334.17959158,0.00010899,2]
[335343808,1724141432922,-500.0,0.00010899,2]
[335343809,1724141432931,-500.0,0.00010899,2]
[335343810,1724141432940,-500.0,0.00010899,2]
[335343811,1724141432950,-500.0,0.00010899,2]
[335343812,1724141432959,-500.0,0.00010899,2]
[335343813,1724141432968,-500.0,0.00010899,2]
[335343814,1724141432977,-500.0,0.00010899,2]
[335343815,1724141432987,-500.0,0.00010899,2]
[335343816,1724141432996,-500.0,0.00010899,2]
[335343817,1724141433006,-500.0,0.00010899,2]
[335343818,1724141433015,-500.0,0.00010899,2]
[335343819,1724141433025,-500.0,0.00010899,2]
[335343820,1724141433034,-500.0,0.00010899,2]
[335343821,1724141433044,-409.29512782,0.00010899,2]
[335343822,1724141433053,-162.78185296,0.00010899,2]
[335343823,1724141433063,-500.0,0.00010899,2]
[335343824,1724141433072,-500.0,0.00010899,2]
[335343825,1724141433082,-500.0,0.00010899,2]
[335343826,1724141433092,-500.0,0.00010899,2]
[335343827,1724141433101,-500.0,0.00010899,2]
[335343828,1724141433111,-542.72476333,0.00010899,2]
[335343829,1724141433120,-500.0,0.00010899,2]
[335343830,1724141433130,-500.0,0.00010899,2]
[335343831,1724141433139,-462.87771395,0.00010899,2]
[335343832,1724141433151,-37.12228605,0.00010899,2]
[335343833,1724141433160,-500.0,0.00010899,2]
[335343834,1724141433170,-500.0,0.00010899,2]
[335343835,1724141433179,-219.39972685,0.00010899,2]
[335343836,1724141433188,-500.0,0.00010899,2]
[335343837,1724141433198,-500.0,0.00010899,2]
[335343838,1724141433207,-500.0,0.00010899,2]
[335343839,1724141433217,-500.0,0.00010899,2]
[335343840,1724141433226,-500.0,0.00010899,2]
[335343841,1724141433236,-181.35571149,0.00010899,2]
[335343842,1724141433245,-500.0,0.00010899,2]
[335343843,1724141433257,-500.0,0.00010899,2]
[335343844,1724141433267,-500.0,0.00010899,2]
[335343845,1724141433276,-500.0,0.00010899,2]
[335343846,1724141433285,-500.0,0.00010899,2]
[335343847,1724141433295,-228.74,0.00010899,2]
[335343848,1724141433304,-500.0,0.00010899,2]
[335343849,1724141433314,-500.0,0.00010899,2]
[335343850,1724141433323,-500.0,0.00010899,2]
[335343851,1724141433333,-500.0,0.00010899,2]
[335343852,1724141433344,-500.0,0.00010899,2]
[335343853,1724141433354,-500.0,0.00010899,2]
[335343854,1724141433364,-500.0,0.00010899,2]
[335343855,1724141433373,-500.0,0.00010899,2]
[335343856,1724141433384,-500.0,0.00010899,2]
[335343857,1724141433394,-531.00583952,0.00010899,2]
[335343858,1724141433404,-500.0,0.00010899,2]
[335343859,1724141433414,-500.0,0.00010899,2]
[335343860,1724141433424,-500.0,0.00010899,2]
[335343861,1724141433434,-500.0,0.00010899,2]
[335343862,1724141433443,-500.0,0.00010899,2]
[335343863,1724141433453,-594.52972898,0.00010899,2]
[335343864,1724141433463,-500.0,0.00010899,2]
[335343865,1724141433472,-500.0,0.00010899,2]
[335343866,1724141433481,-500.0,0.00010899,2]
[335343867,1724141433491,-500.0,0.00010899,2]
[335343868,1724141433500,-500.0,0.00010899,2]
[335343869,1724141433511,-500.0,0.00010899,2]
[335343870,1724141433522,-500.0,0.00010899,2]
[335343871,1724141433531,-250.28523305,0.00010899,2]
[335343872,1724141433542,-500.0,0.00010899,2]
[335343873,1724141433552,-500.0,0.00010899,2]
[335343874,1724141433562,-500.0,0.00010899,2]
[335343875,1724141433571,-500.0,0.00010899,2]
[335343876,1724141433581,-500.0,0.00010899,2]
[335343877,1724141433590,-500.0,0.00010899,2]
[335343878,1724141433600,-238.68374582,0.00010899,2]
[335343879,1724141433609,-500.0,0.00010899,2]
[335343880,1724141433619,-500.0,0.00010899,2]
[335343881,1724141433628,-500.0,0.00010899,2]
[335343882,1724141433638,-157.04291617,0.00010899,2]
[335343883,1724141433650,-342.95708383,0.00010899,2]
[335343884,1724141433660,-500.0,0.00010899,2]
[335343885,1724141433669,-607.51,0.00010899,2]
[335343886,1724141433678,-468.75756375,0.00010899,2]
[335343887,1724141433693,-31.24243625,0.00010899,2]
[335343888,1724141433702,-500.0,0.00010899,2]
[335343889,1724141433711,-500.0,0.00010899,2]
[335343890,1724141433721,-153.00642518,0.00010899,2]
[335343891,1724141433733,-346.99357482,0.00010899,2]
[335343892,1724141433743,-21.77686258,0.00010899,2]
[335343895,1724141437780,-878.43858159,9.987e-05,2]
[335343896,1724141437790,-148.11444323,0.000108,2]
[335343897,1724141437835,-291.95830732,0.000108,2]
[335343898,1724141437944,-447.83296721,0.000108,2]
[335343899,1724141437954,-1077.0,0.0001084,2]
[335343900,1724141437963,-887.90571776,0.0001085,2]
[335343901,1724141437973,-499.57182293,0.00010899,2]
[335343902,1724141437982,-500.0,0.00010899,2]
[335343903,1724141437992,-500.0,0.00010899,2]
[335343904,1724141438002,-500.0,0.00010899,2]
[335343905,1724141438012,-500.0,0.00010899,2]
[335343906,1724141438022,-500.0,0.00010899,2]
[335343907,1724141438030,-500.0,0.00010899,2]
[335343908,1724141438040,-500.0,0.00010899,2]
[335343909,1724141438050,-500.0,0.00010899,2]
[335343910,1724141438059,-397.98,0.00010899,2]
[335343911,1724141438068,-500.0,0.00010899,2]
[335343912,1724141438077,-500.0,0.00010899,2]
[335343913,1724141438086,-500.0,0.00010899,2]
[335343914,1724141438095,-500.0,0.00010899,2]
[335343915,1724141438105,-500.0,0.00010899,2]
[335343916,1724141438114,-500.0,0.00010899,2]
[335343917,1724141438123,-500.0,0.00010899,2]
[335343918,1724141438132,-492.62112894,0.00010899,2]
[335343919,1724141438141,-500.0,0.00010899,2]
[335343920,1724141438150,-500.0,0.00010899,2]
[335343921,1724141438160,-500.0,0.00010899,2]
[335343922,1724141438169,-500.0,0.00010899,2]
[335343923,1724141438178,-500.0,0.00010899,2]
[335343924,1724141438187,-500.0,0.00010899,2]
[335343925,1724141438196,-500.0,0.00010899,2]
[335343926,1724141438205,-644.14,0.00010899,2]
[335343928,1724141438214,-500.0,0.00010899,2]
[335343930,1724141438223,-500.0,0.00010899,2]
[335343932,1724141438233,-500.0,0.00010899,2]
[335343934,1724141438242,-297.37571144,0.00010899,2]
[335343935,1724141438251,-500.0,0.00010899,2]
[335343937,1724141438261,-500.0,0.00010899,2]
[335343939,1724141438270,-500.0,0.00010899,2]
[335343940,1724141438279,-500.0,0.00010899,2]
[335343941,1724141438289,-500.0,0.00010899,2]
[335343942,1724141438298,-500.0,0.00010899,2]
[335343943,1724141438307,-500.0,0.00010899,2]
[335343944,1724141438316,-500.0,0.00010899,2]
[335343945,1724141438325,-500.0,0.00010899,2]
[335343946,1724141438334,-513.59950116,0.00010899,2]
[335343947,1724141438343,-501.01137996,0.00010899,2]
[335343948,1724141438353,-500.0,0.00010899,2]
[335343949,1724141438361,-500.0,0.00010899,2]
[335343950,1724141438370,-500.0,0.00010899,2]
[335343951,1724141438379,-500.0,0.00010899,2]
[335343952,1724141438388,-500.0,0.00010899,2]
[335343953,1724141438397,-173.30800425,0.00010899,2]
[335343954,1724141438406,-500.0,0.00010899,2]
[335343955,1724141438415,-500.0,0.00010899,2]
[335343956,1724141438425,-500.0,0.00010899,2]
[335343957,1724141438434,-500.0,0.00010899,2]
[335343958,1724141438443,-500.0,0.00010899,2]
[335343959,1724141438452,-500.0,0.00010899,2]
[335343960,1724141438461,-500.0,0.00010899,2]
[335343961,1724141438471,-500.0,0.00010899,2]
[335343962,1724141438480,-290.40094088,0.00010899,2]
[335343963,1724141438488,-450.13242618,0.00010899,2]
[335343964,1724141438505,-10.71138221,0.00010899,2]
[335343965,1724141438515,-500.0,0.00010899,2]
[335343966,1724141438524,-500.0,0.00010899,2]
[335343967,1724141438533,-500.0,0.00010899,2]
[335343968,1724141438542,-500.0,0.00010899,2]
[335343969,1724141438551,-478.9688741,0.00010899,2]
[335343970,1724141438561,-500.0,0.00010899,2]
[335343971,1724141438570,-500.0,0.00010899,2]
[335343972,1724141438579,-500.0,0.00010899,2]
[335343973,1724141438588,-500.0,0.00010899,2]
[335343974,1724141438597,-500.0,0.00010899,2]
[335343975,1724141438606,-500.0,0.00010899,2]
[335343976,1724141438616,-500.0,0.00010899,2]
[335343977,1724141438625,-601.58113087,0.00010899,2]
[335343978,1724141438635,-1074.88726643,0.00010899,2]
[335343979,1724141438643,-500.0,0.00010899,2]
[335343980,1724141438653,-500.0,0.00010899,2]
[335343981,1724141438662,-501.96742042,0.00010899,2]
[335343982,1724141438671,-500.0,0.00010899,2]
[335343983,1724141438680,-500.0,0.00010899,2]
[335343984,1724141438694,-500.0,0.00010899,2]
[335343985,1724141438703,-500.0,0.00010899,2]
[335343986,1724141438712,-500.0,0.00010899,2]
[335343987,1724141438721,-500.0,0.00010899,2]
[335343988,1724141438732,-500.0,0.00010899,2]
[335343989,1724141438742,-500.0,0.00010899,2]
[335343990,1724141438751,-500.0,0.00010899,2]
[335343991,1724141438762,-408.2697894,0.00010899,2]
[335343992,1724141438772,-500.0,0.00010899,2]
[335343993,1724141438782,-500.0,0.00010899,2]
[335343994,1724141438792,-500.0,0.00010899,2]
[335343995,1724141438801,-500.0,0.00010899,2]
[335343996,1724141438811,-500.0,0.00010899,2]
[335343997,1724141438820,-519.71758642,0.00010899,2]
[335343998,1724141438830,-1714.35859036,0.00010899,2]
[335343999,1724141438839,-1714.3585903,0.00010899,2]
[335344000,1724141438849,-1714.3585903,0.00010899,2]
[335344001,1724141438859,-3555.29646898,0.000109,2]
[335344002,1724141439886,-69773.71844678,0.000109,2]
[335344003,1724141439993,-52110.85762461,0.000109,2]
[335344004,1724141440005,-615.61579363,0.000109,2]
[335344005,1724141440155,-453.54983411,0.000109,2]
[335344052,1724141442832,-473.25526323,0.00010899,2]
[335344053,1724141442844,-485.305,0.00010899,2]
[335344054,1724141442855,-566.35561271,0.00010899,2]
[335344055,1724141442890,-189.44271436,0.00010899,2]
[335344056,1724141442900,-2000960.22036925,0.000109,2]
[335344057,1724141442947,-6099.87879838,0.000109,2]
[335344058,1724141442959,-586.95450276,0.000109,2]
[335344059,1724141443052,-8798.02859357,0.000109,2]
[335344078,1724141445844,-5948.71108862,0.000109,2]
[335344080,1724141445856,-609.8300212,0.000109,2]
[335344081,1724141445867,-612.34305062,0.000109,2]
[335344082,1724141445879,-8499.85506002,0.000109,2]
[335344083,1724141446036,-16288.40638518,0.000109,2]
[335344084,1724141446048,-949.65,0.000109,2]
[335344085,1724141446059,-2066.50353201,0.000109,2]
[335344086,1724141446071,-432.05266282,0.000109,2]
[335344087,1724141446088,-565.134902,0.00010899,2]
[335344088,1724141446098,-1149.2236883,0.00010899,2]
[335344089,1724141446107,-1321.04625775,0.000109,2]
[335344090,1724141446119,-6298.44402981,0.000109,2]
[335344093,1724141497883,297.90978804,9.637e-05,2]
[335344094,1724141554239,15448.7148,9.81e-05,2]
[335344095,1724141577441,500.0,8.22e-05,2]
[335344096,1724141596180,351.78,8.219e-05,2]
[335344097,1724141598121,500.0,9.9e-05,2]
[335344098,1724141598880,500.0,9.9e-05,2]
[335344099,1724141599639,500.0,9.9e-05,2]
[335344100,1724141600503,601.94,9.9e-05,2]
[335344101,1724141600605,500.0,8.22e-05,2]
[335344102,1724141600834,500.0,8.22e-05,2]
[335344103,1724141601629,500.0,8.22e-05,2]
[335344104,1724141602404,500.0,9.59e-05,2]
[335344105,1724141603227,500.0,9.59e-05,2]
[335344106,1724141614868,500.0,8.22e-05,2]
[335344107,1724141658648,1500.0,9.899e-05,2]
[335344108,1724141665720,500.0,9.9e-05,2]
[335344109,1724141712347,578.92,9.707e-05,2]
[335344110,1724141753097,777.44,9.709e-05,2]
[335344111,1724141783250,200.0,9.709e-05,2]
[335344112,1724141793728,500.0,9.9e-05,2]
[335344113,1724141794485,500.0,9.9e-05,2]
[335344114,1724141795847,500.0,9.9e-05,2]
[335344115,1724141796485,500.0,9.9e-05,2]
[335344116,1724141797266,500.0,9.9e-05,2]
[335344117,1724141798066,500.0,9.9e-05,2]
[335344118,1724141798873,500.0,9.9e-05,2]
[335344119,1724141799638,500.0,9.9e-05,2]
[335344120,1724141800385,500.0,9.9e-05,2]
[335344121,1724141801133,638.25,9.9e-05,2]
[335344122,1724141805996,160.6,9.715e-05,2]
[335344124,1724141877265,1500.0,0.000179,120]
[335344125,1724141885405,197.53097559,9.899e-05,2]
[335344126,1724141911720,155.27713718,9.899e-05,2]
[335344127,1724141931814,500.0,9.9e-05,2]
[335344128,1724142030543,500.0,9.733e-05,2]
[335344129,1724142108991,160.86,9.729e-05,2]
[335344130,1724142118487,23900.0,9.729e-05,2]
[335344131,1724142161789,358.21,8.219e-05,2]
[335344132,1724142162323,250.0,9.764e-05,2]
[335344134,1724142183469,160.09,9.753e-05,2]
[335344135,1724142255082,1994.19,9.74e-05,2]
[335344136,1724142277380,175.47,9.738e-05,2]
[335344137,1724142281481,536.86,9.746e-05,2]
[335344138,1724142309187,172.99,9.733e-05,2]
[335344139,1724142366889,11304.25,9.764e-05,2]
[335344151,1724142599997,26166.76980326,9.899e-05,2]
[335344157,1724142631939,-323.88959871,9.91e-05,2]
[335344158,1724142631949,-1106.00770764,9.941e-05,2]
[335344159,1724142631959,-522.9745894,9.943e-05,2]
[335344160,1724142631968,-1298.20256348,9.943e-05,2]
[335344161,1724142631978,-685.40080271,9.943e-05,2]
[335344162,1724142631988,-778.63384695,9.943e-05,2]
[335344163,1724142631999,-879.08349335,9.943e-05,2]
[335344164,1724142632009,-1076.67749202,9.943e-05,2]
[335344165,1724142632019,-300.0,9.987e-05,2]
[335344166,1724142632028,-348.31108748,9.988e-05,2]
[335344167,1724142632039,-1161.35257624,9.988e-05,2]
[335344168,1724142632050,-1891.59002609,9.988e-05,2]
[335344169,1724142632109,-1663.24253384,9.988e-05,2]
[335344170,1724142632119,-1959.67229461,9.988e-05,2]
[335344177,1724142637956,-883.01136766,9.988e-05,2]
[335344178,1724142637966,-108.51122617,9.999e-05,2]
[335344179,1724142638014,-563.33203831,9.999e-05,2]
[335344180,1724142638023,-1050.0,0.0001,2]
[335344181,1724142638033,-400.0,0.0001,3]
[335344182,1724142638042,-1117.21173453,0.0001,2]
[335344183,1724142638052,-150.0,0.00010008,2]
[335344184,1724142638061,-909.46121436,0.00010009,2]
[335344185,1724142638230,-1743.09619762,0.00010009,2]
[335344186,1724142638243,-155.0,0.00010009,2]
[335344188,1724142638253,-164.40811307,0.00010009,2]
[335344190,1724142638262,-218.99354596,0.00010009,2]
[335344191,1724142638271,-563.62,0.00010026,2]
[335344193,1724142638280,-289.41545164,0.00010026,2]
[335344195,1724142638289,-150.99,0.00010097,2]
[335344197,1724142638298,-800.0,0.000101,3]
[335344199,1724142638307,-210.52,0.00010158,2]
[335344201,1724142638317,-1300.0,0.000102,3]
[335344203,1724142638326,-282.52,0.00010232,2]
[335344205,1724142638335,-1700.0,0.000103,3]
[335344207,1724142638344,-1199.001091,0.00010341,2]
[335344209,1724142638355,-3865.91422666,0.00010341,2]
[335344211,1724142638364,-150.99,0.0001035,2]
[335344213,1724142638373,-1762.3,0.00010351,2]
[335344215,1724142638383,-499.99,0.00010351,2]
[335344217,1724142638392,-2076.26752434,0.00010351,2]
[335344219,1724142638403,-1648.74247566,0.00010351,2]
[335344221,1724142638412,-2200.0,0.000104,3]
[335344223,1724142638422,-6779.8597245,0.000104,2]
[335344225,1724142638431,-203.03298078,0.00010471,2]
[335344227,1724142638440,-151.54,0.000105,2]
[335344229,1724142638449,-400.0,0.000105,3]
[335344231,1724142638458,-218.64566621,0.00010505,2]
[335344233,1724142638468,-421.4,0.00010559,2]
[335344234,1724142638477,-820.64,0.00010559,2]
[335344236,1724142638489,-790.63,0.00010559,2]
[335344238,1724142638499,-790.63,0.00010559,2]
[335344240,1724142638508,-421.4,0.00010559,2]
[335344242,1724142638518,-790.63,0.00010559,2]
[335344244,1724142638527,-421.4,0.00010559,2]
[335344246,1724142638536,-820.47,0.00010559,2]
[335344248,1724142638546,-790.63,0.00010559,2]
[335344250,1724142638555,-400.0,0.000106,3]
[335344252,1724142638564,-150.0,0.00010673,2]
[335344254,1724142638573,-150.0,0.00010678,2]
[335344256,1724142638582,-150.0,0.00010689,2]
[335344257,1724142638591,-400.0,0.000107,3]
[335344259,1724142638600,-150.0,0.00010706,2]
[335344261,1724142638609,-1500.0,0.00010709,2]
[335344263,1724142638618,-2387.97522321,0.00010713,2]
[335344265,1724142638628,-150.0,0.00010714,2]
[335344267,1724142638637,-150.0,0.00010715,2]
[335344269,1724142638647,-150.0,0.00010741,2]
[335344271,1724142638656,-150.0,0.00010756,2]